[Event "Titled Tuesday Blitz August 24 2021"]
[White "Czopor, Maciej"]
[Black "Obolentseva, Alexandra"]
[WhiteFideId "21805431"]
[BlackFideId "24153648"]
[WhiteElo "1999"]
[BlackElo "2113"]
[Result "1-0"]
[Round "05"]
[TimeControl "180+1"]
[Date "2021.08.24"]
[WhiteClock "0:00:20"]
[BlackClock "0:00:15"]

1. e4 {[%clk 0:02:58]}  c5 {[%clk 0:02:57]} 2. Nf3 {[%clk 0:02:58]}  d6 {[%clk 0:02:56]} 3. d4 {[%clk 0:02:59]}  cxd4 {[%clk 0:02:57]} 4. Nxd4 {[%clk 0:02:59]}  Nf6 {[%clk 0:02:55]} 5. Nc3 {[%clk 0:03:00]}  a6 {[%clk 0:02:55]} 6. Be3 {[%clk 0:03:00]}  e6 {[%clk 0:02:51]} 7. Be2 {[%clk 0:02:55]}  Nbd7 {[%clk 0:02:49]} 8. g4 {[%clk 0:02:52]}  h6 {[%clk 0:02:48]} 9. h4 {[%clk 0:02:50]}  b5 {[%clk 0:02:42]} 10. a3 {[%clk 0:02:50]}  Bb7 {[%clk 0:02:42]} 11. f3 {[%clk 0:02:49]}  Nb6 {[%clk 0:02:42]} 12. Qd2 {[%clk 0:02:35]}  Rc8 {[%clk 0:02:40]} 13. O-O-O {[%clk 0:02:35]}  Nfd7 {[%clk 0:02:33]} 14. g5 {[%clk 0:02:23]}  hxg5 {[%clk 0:02:28]} 15. hxg5 {[%clk 0:02:23]}  Rxh1 {[%clk 0:02:27]} 16. Rxh1 {[%clk 0:02:24]}  g6 {[%clk 0:02:27]} 17. f4 {[%clk 0:02:17]}  Nc5 {[%clk 0:02:19]} 18. f5 {[%clk 0:01:49]}  Nxe4 {[%clk 0:02:17]} 19. Nxe4 {[%clk 0:01:46]}  Bxe4 {[%clk 0:02:16]} 20. Rh8 {[%clk 0:01:00]}  exf5 {[%clk 0:02:10]} 21. Bf4 {[%clk 0:00:49]}  Qc7 {[%clk 0:02:00]} 22. Rxf8+ {[%clk 0:00:45]}  Kxf8 {[%clk 0:01:49]} 23. Ne6+ {[%clk 0:00:46]}  fxe6 {[%clk 0:01:48]} 24. Bxd6+ {[%clk 0:00:46]}  Kf7 {[%clk 0:01:45]} 25. Bxc7 {[%clk 0:00:45]}  Rxc7 {[%clk 0:01:46]} 26. c3 {[%clk 0:00:35]}  Nd5 {[%clk 0:01:40]} 27. Qd4 {[%clk 0:00:35]}  Re7 {[%clk 0:01:15]} 28. Qe5 {[%clk 0:00:33]}  Re8 {[%clk 0:01:10]} 29. a4 {[%clk 0:00:33]}  bxa4 {[%clk 0:01:09]} 30. Bxa6 {[%clk 0:00:31]}  Ra8 {[%clk 0:01:07]} 31. Bb7 {[%clk 0:00:26]}  Ra7 {[%clk 0:00:31]} 32. Bc8 {[%clk 0:00:23]}  Re7 {[%clk 0:00:29]} 33. c4 {[%clk 0:00:24]}  Rc7 {[%clk 0:00:18]} 34. Bxe6+ {[%clk 0:00:21]}  Kf8 {[%clk 0:00:17]} 35. Bxd5 {[%clk 0:00:20]}  Bxd5 {[%clk 0:00:15]} 36. Qxc7 {[%clk 0:00:20]} 1-0


[Site "https://www.chess.com"]

[Event "Titled Tuesday Blitz August 24 2021"]
[White "Delorme, Alban"]
[Black "Pavlov, Danila"]
[WhiteFideId "623636"]
[BlackFideId "34126594"]
[WhiteElo "2197"]
[BlackElo "2323"]
[Result "1/2-1/2"]
[Round "05"]
[TimeControl "180+1"]
[Date "2021.08.24"]
[WhiteClock "0:00:09"]
[BlackClock "0:00:04"]

1. d4 {[%clk 0:03:00]}  Nf6 {[%clk 0:02:59]} 2. Nc3 {[%clk 0:02:59]}  e6 {[%clk 0:02:59]} 3. e4 {[%clk 0:02:59]}  d5 {[%clk 0:03:00]} 4. Bg5 {[%clk 0:02:57]}  Be7 {[%clk 0:03:00]} 5. e5 {[%clk 0:02:57]}  Nfd7 {[%clk 0:03:00]} 6. h4 {[%clk 0:02:57]}  Bxg5 {[%clk 0:03:00]} 7. hxg5 {[%clk 0:02:57]}  Qxg5 {[%clk 0:03:01]} 8. Qd3 {[%clk 0:02:56]}  g6 {[%clk 0:03:00]} 9. Nh3 {[%clk 0:02:52]}  Qe7 {[%clk 0:03:00]} 10. O-O-O {[%clk 0:02:52]}  a6 {[%clk 0:02:58]} 11. f4 {[%clk 0:02:43]}  c5 {[%clk 0:02:57]} 12. dxc5 {[%clk 0:02:39]}  Nc6 {[%clk 0:02:57]} 13. Ng5 {[%clk 0:02:37]}  Nxc5 {[%clk 0:02:55]} 14. Qg3 {[%clk 0:02:14]}  h5 {[%clk 0:02:52]} 15. Bd3 {[%clk 0:01:45]}  Bd7 {[%clk 0:02:43]} 16. Qf2 {[%clk 0:01:44]}  O-O-O {[%clk 0:02:38]} 17. Kb1 {[%clk 0:01:29]}  Kb8 {[%clk 0:02:37]} 18. Ne2 {[%clk 0:01:25]}  Rc8 {[%clk 0:02:33]} 19. Nd4 {[%clk 0:01:24]}  Na4 {[%clk 0:01:29]} 20. Nb3 {[%clk 0:01:04]}  Rhd8 {[%clk 0:01:16]} 21. g4 {[%clk 0:00:56]}  hxg4 {[%clk 0:01:16]} 22. Rh7 {[%clk 0:00:56]}  Nxe5 {[%clk 0:01:01]} 23. fxe5 {[%clk 0:00:49]}  Qxg5 {[%clk 0:01:01]} 24. Qd4 {[%clk 0:00:25]}  Rf8 {[%clk 0:00:50]} 25. Rg1 {[%clk 0:00:22]}  g3 {[%clk 0:00:50]} 26. Rh3 {[%clk 0:00:20]}  g2 {[%clk 0:00:40]} 27. Rh2 {[%clk 0:00:20]}  Rh8 {[%clk 0:00:40]} 28. Rhxg2 {[%clk 0:00:20]}  Qe7 {[%clk 0:00:40]} 29. Rf2 {[%clk 0:00:20]}  Rh7 {[%clk 0:00:40]} 30. Rgf1 {[%clk 0:00:19]}  Be8 {[%clk 0:00:37]} 31. Rf6 {[%clk 0:00:15]}  Nc5 {[%clk 0:00:36]} 32. Qb4 {[%clk 0:00:13]}  Qc7 {[%clk 0:00:32]} 33. Nxc5 {[%clk 0:00:13]}  Qxc5 {[%clk 0:00:33]} 34. Qb3 {[%clk 0:00:14]}  Ka7 {[%clk 0:00:30]} 35. a3 {[%clk 0:00:13]}  Rh5 {[%clk 0:00:29]} 36. R6f4 {[%clk 0:00:12]}  Rxe5 {[%clk 0:00:28]} 37. Rb4 {[%clk 0:00:13]}  Rc7 {[%clk 0:00:28]} 38. Rh1 {[%clk 0:00:10]}  Rh5 {[%clk 0:00:27]} 39. Rf1 {[%clk 0:00:08]}  f5 {[%clk 0:00:20]} 40. Be2 {[%clk 0:00:08]}  Rh2 {[%clk 0:00:18]} 41. Bd1 {[%clk 0:00:08]}  e5 {[%clk 0:00:18]} 42. Qg3 {[%clk 0:00:08]}  Rhh7 {[%clk 0:00:11]} 43. Qxe5 {[%clk 0:00:08]}  Rhe7 {[%clk 0:00:12]} 44. Qg3 {[%clk 0:00:07]}  Re4 {[%clk 0:00:11]} 45. Rb3 {[%clk 0:00:06]}  Rc4 {[%clk 0:00:11]} 46. c3 {[%clk 0:00:05]}  Re7 {[%clk 0:00:11]} 47. Bf3 {[%clk 0:00:05]}  Bf7 {[%clk 0:00:09]} 48. Qg2 {[%clk 0:00:06]}  Rf4 {[%clk 0:00:07]} 49. Rd1 {[%clk 0:00:06]}  g5 {[%clk 0:00:06]} 50. Rb4 {[%clk 0:00:05]}  Rxb4 {[%clk 0:00:05]} 51. axb4 {[%clk 0:00:06]}  Qe3 {[%clk 0:00:05]} 52. Bxd5 {[%clk 0:00:06]}  Bxd5 {[%clk 0:00:06]} 53. Qxd5 {[%clk 0:00:05]}  Qe4+ {[%clk 0:00:06]} 54. Qxe4 {[%clk 0:00:05]}  Rxe4 {[%clk 0:00:07]} 55. Rg1 {[%clk 0:00:05]}  g4 {[%clk 0:00:07]} 56. Kc2 {[%clk 0:00:06]}  Re3 {[%clk 0:00:07]} 57. Kd2 {[%clk 0:00:06]}  Rf3 {[%clk 0:00:08]} 58. Ke2 {[%clk 0:00:06]}  Kb6 {[%clk 0:00:08]} 59. Rd1 {[%clk 0:00:07]}  Kb5 {[%clk 0:00:07]} 60. Rd7 {[%clk 0:00:07]}  b6 {[%clk 0:00:08]} 61. Rc7 {[%clk 0:00:07]}  a5 {[%clk 0:00:07]} 62. bxa5 {[%clk 0:00:05]}  bxa5 {[%clk 0:00:08]} 63. c4+ {[%clk 0:00:06]}  Kb4 {[%clk 0:00:08]} 64. Rc8 {[%clk 0:00:06]}  Rb3 {[%clk 0:00:08]} 65. c5 {[%clk 0:00:06]}  Rxb2+ {[%clk 0:00:08]} 66. Ke3 {[%clk 0:00:06]}  Rb3+ {[%clk 0:00:09]} 67. Kf4 {[%clk 0:00:07]}  Rf3+ {[%clk 0:00:10]} 68. Ke5 {[%clk 0:00:06]}  g3 {[%clk 0:00:10]} 69. c6 {[%clk 0:00:07]}  g2 {[%clk 0:00:09]} 70. c7 {[%clk 0:00:06]}  g1=Q {[%clk 0:00:09]} 71. Rb8+ {[%clk 0:00:07]}  Ka4 {[%clk 0:00:09]} 72. c8=Q {[%clk 0:00:08]}  Qe3+ {[%clk 0:00:07]} 73. Kf6 {[%clk 0:00:08]}  Qh6+ {[%clk 0:00:06]} 74. Kf7 {[%clk 0:00:06]}  Qh7+ {[%clk 0:00:06]} 75. Kf6 {[%clk 0:00:07]}  Qh6+ {[%clk 0:00:06]} 76. Kf7 {[%clk 0:00:07]}  Qh5+ {[%clk 0:00:06]} 77. Kf6 {[%clk 0:00:08]}  Qh4+ {[%clk 0:00:06]} 78. Kf7 {[%clk 0:00:08]}  Qh7+ {[%clk 0:00:04]} 79. Kf6 {[%clk 0:00:09]}  Qh6+ {[%clk 0:00:04]} 1/2-1/2


[Site "https://www.chess.com"]

[Event "Titled Tuesday Blitz August 24 2021"]
[White "FGHSMN"]
[Black "Grunberg, Mihai-Lucian"]
[BlackFideId "1204149"]
[WhiteElo "2703"]
[BlackElo "2364"]
[Result "1-0"]
[Round "05"]
[TimeControl "180+1"]
[Date "2021.08.24"]
[WhiteClock "0:01:38"]
[BlackClock "0:01:14"]

1. e4 {[%clk 0:03:00]}  Nf6 {[%clk 0:02:58]} 2. e5 {[%clk 0:03:00]}  Nd5 {[%clk 0:02:58]} 3. d4 {[%clk 0:02:58]}  d6 {[%clk 0:02:58]} 4. Nf3 {[%clk 0:02:58]}  dxe5 {[%clk 0:02:58]} 5. Nxe5 {[%clk 0:02:59]}  c6 {[%clk 0:02:58]} 6. Bc4 {[%clk 0:02:58]}  Nd7 {[%clk 0:02:58]} 7. Nf3 {[%clk 0:02:54]}  N7b6 {[%clk 0:02:57]} 8. Be2 {[%clk 0:02:54]}  Bg4 {[%clk 0:02:56]} 9. O-O {[%clk 0:02:53]}  e6 {[%clk 0:02:56]} 10. h3 {[%clk 0:02:54]}  Bh5 {[%clk 0:02:55]} 11. Ne5 {[%clk 0:02:53]}  Bxe2 {[%clk 0:02:55]} 12. Qxe2 {[%clk 0:02:54]}  Be7 {[%clk 0:02:54]} 13. c4 {[%clk 0:02:54]}  Nf6 {[%clk 0:02:53]} 14. Rd1 {[%clk 0:02:55]}  O-O {[%clk 0:02:53]} 15. Nc3 {[%clk 0:02:54]}  Nbd7 {[%clk 0:02:50]} 16. Bf4 {[%clk 0:02:54]}  Qc8 {[%clk 0:02:47]} 17. Rd3 {[%clk 0:02:53]}  Rd8 {[%clk 0:02:46]} 18. g4 {[%clk 0:02:41]}  c5 {[%clk 0:02:35]} 19. g5 {[%clk 0:02:39]}  Ne8 {[%clk 0:02:31]} 20. Re1 {[%clk 0:02:19]}  cxd4 {[%clk 0:02:29]} 21. Nxf7 {[%clk 0:02:18]}  e5 {[%clk 0:01:58]} 22. Nxd8 {[%clk 0:02:13]}  dxc3 {[%clk 0:01:55]} 23. Bxe5 {[%clk 0:02:01]}  Qxd8 {[%clk 0:01:51]} 24. Bxc3 {[%clk 0:02:00]}  Bd6 {[%clk 0:01:15]} 25. Qe6+ {[%clk 0:01:51]}  Kh8 {[%clk 0:01:14]} 26. Qxe8+ {[%clk 0:01:38]} 1-0


[Site "https://www.chess.com"]

[Event "Titled Tuesday Blitz August 24 2021"]
[White "Firat, Burak"]
[Black "Palchuk, Andrii"]
[WhiteFideId "6305881"]
[BlackFideId "14176688"]
[WhiteElo "2531"]
[BlackElo "2320"]
[Result "0-1"]
[Round "05"]
[TimeControl "180+1"]
[Date "2021.08.24"]
[WhiteClock "0:00:04"]
[BlackClock "0:00:06"]

1. d4 {[%clk 0:02:04]}  Nf6 {[%clk 0:02:59]} 2. Bg5 {[%clk 0:02:03]}  Ne4 {[%clk 0:02:59]} 3. Bf4 {[%clk 0:02:03]}  d5 {[%clk 0:03:00]} 4. Nd2 {[%clk 0:02:03]}  Nxd2 {[%clk 0:02:59]} 5. Qxd2 {[%clk 0:02:04]}  g6 {[%clk 0:02:59]} 6. h4 {[%clk 0:02:03]}  Bg7 {[%clk 0:02:58]} 7. h5 {[%clk 0:02:03]}  c5 {[%clk 0:02:49]} 8. hxg6 {[%clk 0:02:03]}  hxg6 {[%clk 0:02:49]} 9. Rxh8+ {[%clk 0:02:03]}  Bxh8 {[%clk 0:02:50]} 10. Be5 {[%clk 0:02:03]}  Bxe5 {[%clk 0:02:44]} 11. dxe5 {[%clk 0:02:04]}  Nc6 {[%clk 0:02:44]} 12. Nf3 {[%clk 0:01:53]}  Bg4 {[%clk 0:02:41]} 13. O-O-O {[%clk 0:01:50]}  e6 {[%clk 0:02:36]} 14. e4 {[%clk 0:01:42]}  d4 {[%clk 0:02:10]} 15. Bb5 {[%clk 0:01:30]}  Qb6 {[%clk 0:02:05]} 16. Bxc6+ {[%clk 0:01:25]}  Qxc6 {[%clk 0:02:05]} 17. Qf4 {[%clk 0:01:25]}  Bxf3 {[%clk 0:02:04]} 18. gxf3 {[%clk 0:01:24]}  Qd7 {[%clk 0:01:37]} 19. Qf6 {[%clk 0:01:24]}  Qe7 {[%clk 0:01:34]} 20. Rh1 {[%clk 0:01:24]}  Qxf6 {[%clk 0:01:32]} 21. exf6 {[%clk 0:01:25]}  O-O-O {[%clk 0:01:29]} 22. Rh7 {[%clk 0:01:24]}  Rf8 {[%clk 0:01:29]} 23. e5 {[%clk 0:01:18]}  Kc7 {[%clk 0:01:26]} 24. c4 {[%clk 0:01:13]}  Kc6 {[%clk 0:01:22]} 25. a4 {[%clk 0:01:11]}  b6 {[%clk 0:01:19]} 26. Kd2 {[%clk 0:01:11]}  a6 {[%clk 0:01:19]} 27. Kd3 {[%clk 0:01:07]}  b5 {[%clk 0:01:19]} 28. a5 {[%clk 0:01:03]}  bxc4+ {[%clk 0:00:52]} 29. Kxc4 {[%clk 0:01:04]}  Rb8 {[%clk 0:00:45]} 30. Rxf7 {[%clk 0:00:57]}  Rb4+ {[%clk 0:00:43]} 31. Kd3 {[%clk 0:00:57]}  Kd5 {[%clk 0:00:37]} 32. f4 {[%clk 0:00:37]}  Rb3+ {[%clk 0:00:29]} 33. Kc2 {[%clk 0:00:32]}  Rf3 {[%clk 0:00:29]} 34. Rd7+ {[%clk 0:00:31]}  Ke4 {[%clk 0:00:27]} 35. Rd6 {[%clk 0:00:26]}  Rxf2+ {[%clk 0:00:25]} 36. Kb3 {[%clk 0:00:25]}  Rxf4 {[%clk 0:00:26]} 37. Rxe6 {[%clk 0:00:24]}  Kd5 {[%clk 0:00:19]} 38. Re8 {[%clk 0:00:22]}  c4+ {[%clk 0:00:12]} 39. Kb4 {[%clk 0:00:22]}  d3 {[%clk 0:00:11]} 40. Re7 {[%clk 0:00:14]}  Ke4 {[%clk 0:00:04]} 41. Kxc4 {[%clk 0:00:07]}  Ke3+ {[%clk 0:00:05]} 42. Kc3 {[%clk 0:00:07]}  Ke2 {[%clk 0:00:03]} 43. Rd7 {[%clk 0:00:06]}  Rf3 {[%clk 0:00:03]} 44. e6 {[%clk 0:00:04]}  Rxf6 {[%clk 0:00:03]} 45. e7 {[%clk 0:00:04]}  Rc6+ {[%clk 0:00:03]} 46. Kb3 {[%clk 0:00:03]}  Re6 {[%clk 0:00:04]} 47. Kc3 {[%clk 0:00:03]}  Rc6+ {[%clk 0:00:03]} 48. Kb3 {[%clk 0:00:04]}  Re6 {[%clk 0:00:04]} 49. Kc4 {[%clk 0:00:04]}  d2 {[%clk 0:00:03]} 50. e8=Q {[%clk 0:00:03]}  Rxe8 {[%clk 0:00:03]} 51. Kc5 {[%clk 0:00:03]}  d1=Q {[%clk 0:00:04]} 52. Rxd1 {[%clk 0:00:03]}  Kxd1 {[%clk 0:00:05]} 53. Kb6 {[%clk 0:00:04]}  Re6+ {[%clk 0:00:05]} 54. Kc5 {[%clk 0:00:04]}  g5 {[%clk 0:00:06]} 0-1


[Site "https://www.chess.com"]

[Event "Titled Tuesday Blitz August 24 2021"]
[White "Florescu, Codrut-Constantin"]
[Black "Gracia Alvarez, Gerardo Antonio"]
[WhiteFideId "1202200"]
[BlackFideId "5109124"]
[WhiteElo "2243"]
[BlackElo "2148"]
[Result "0-1"]
[Round "05"]
[TimeControl "180+1"]
[Date "2021.08.24"]
[WhiteClock "0:00:13"]
[BlackClock "0:01:44"]

1. d4 {[%clk 0:00:05]}  Nf6 {[%clk 0:02:53]} 2. c3 {[%clk 0:00:06]}  g6 {[%clk 0:02:48]} 3. Nf3 {[%clk 0:00:07]}  Bg7 {[%clk 0:02:48]} 4. g3 {[%clk 0:00:08]}  O-O {[%clk 0:02:48]} 5. Bg2 {[%clk 0:00:08]}  c5 {[%clk 0:02:48]} 6. O-O {[%clk 0:00:09]}  cxd4 {[%clk 0:02:49]} 7. e3 {[%clk 0:00:10]}  dxc3 {[%clk 0:02:47]} 8. Qe2 {[%clk 0:00:11]}  Nc6 {[%clk 0:02:44]} 9. h3 {[%clk 0:00:12]}  d5 {[%clk 0:02:40]} 10. Nxc3 {[%clk 0:00:13]}  Ne4 {[%clk 0:02:30]} 11. Nxe4 {[%clk 0:00:12]}  dxe4 {[%clk 0:02:30]} 12. Nd2 {[%clk 0:00:13]}  Qd3 {[%clk 0:02:29]} 13. Qe1 {[%clk 0:00:11]}  f5 {[%clk 0:02:26]} 14. f3 {[%clk 0:00:11]}  exf3 {[%clk 0:02:14]} 15. Nxf3 {[%clk 0:00:11]}  Be6 {[%clk 0:02:06]} 16. Rf2 {[%clk 0:00:11]}  Rfd8 {[%clk 0:01:48]} 17. Bf1 {[%clk 0:00:12]}  Qd1 {[%clk 0:01:45]} 18. Ng5 {[%clk 0:00:13]}  Qxe1 {[%clk 0:01:44]} 0-1


[Site "https://www.chess.com"]

[Event "Titled Tuesday Blitz August 24 2021"]
[White "Girinath, P.D.S."]
[Black "Tsaruk, Maksim"]
[WhiteFideId "5000572"]
[BlackFideId "13511173"]
[WhiteElo "2333"]
[BlackElo "2184"]
[Result "1/2-1/2"]
[Round "05"]
[TimeControl "180+1"]
[Date "2021.08.24"]
[WhiteClock "0:00:04"]
[BlackClock "0:00:04"]

1. e4 {[%clk 0:03:00]}  e6 {[%clk 0:02:55]} 2. d3 {[%clk 0:02:59]}  d5 {[%clk 0:02:56]} 3. Nd2 {[%clk 0:02:58]}  Nf6 {[%clk 0:02:56]} 4. Ngf3 {[%clk 0:02:58]}  c5 {[%clk 0:02:57]} 5. g3 {[%clk 0:02:56]}  Nc6 {[%clk 0:02:58]} 6. Bg2 {[%clk 0:02:56]}  Be7 {[%clk 0:02:59]} 7. O-O {[%clk 0:02:56]}  O-O {[%clk 0:02:59]} 8. Re1 {[%clk 0:02:55]}  h6 {[%clk 0:02:58]} 9. c3 {[%clk 0:02:47]}  a5 {[%clk 0:02:53]} 10. e5 {[%clk 0:02:38]}  Nd7 {[%clk 0:02:51]} 11. a4 {[%clk 0:02:17]}  b6 {[%clk 0:02:40]} 12. h4 {[%clk 0:02:13]}  Ba6 {[%clk 0:02:40]} 13. Nf1 {[%clk 0:02:11]}  b5 {[%clk 0:02:24]} 14. axb5 {[%clk 0:01:53]}  Bxb5 {[%clk 0:02:25]} 15. Bf4 {[%clk 0:01:53]}  Qb6 {[%clk 0:02:25]} 16. Ne3 {[%clk 0:01:47]}  Rfb8 {[%clk 0:02:08]} 17. Ng4 {[%clk 0:01:13]}  Bf8 {[%clk 0:02:07]} 18. h5 {[%clk 0:01:09]}  Ba6 {[%clk 0:01:58]} 19. Re2 {[%clk 0:00:58]}  a4 {[%clk 0:01:35]} 20. Qd2 {[%clk 0:00:52]}  Kh7 {[%clk 0:01:32]} 21. Rxa4 {[%clk 0:00:40]}  Bb5 {[%clk 0:01:33]} 22. Rxa8 {[%clk 0:00:39]}  Rxa8 {[%clk 0:01:34]} 23. Re1 {[%clk 0:00:33]}  Ra2 {[%clk 0:01:32]} 24. d4 {[%clk 0:00:27]}  cxd4 {[%clk 0:01:30]} 25. Nxd4 {[%clk 0:00:25]}  Nxd4 {[%clk 0:01:26]} 26. cxd4 {[%clk 0:00:24]}  Ba6 {[%clk 0:01:09]} 27. Rb1 {[%clk 0:00:22]}  Qb3 {[%clk 0:00:40]} 28. Bf1 {[%clk 0:00:16]}  Bb4 {[%clk 0:00:32]} 29. Qe3 {[%clk 0:00:12]}  Qxe3 {[%clk 0:00:28]} 30. Nxe3 {[%clk 0:00:06]}  Bxf1 {[%clk 0:00:28]} 31. Kxf1 {[%clk 0:00:07]}  Nb6 {[%clk 0:00:29]} 32. Ke2 {[%clk 0:00:06]}  Na4 {[%clk 0:00:28]} 33. Nd1 {[%clk 0:00:05]}  Bc3 {[%clk 0:00:19]} 34. Bc1 {[%clk 0:00:04]}  Bxd4 {[%clk 0:00:18]} 35. Kd3 {[%clk 0:00:03]}  Bxe5 {[%clk 0:00:17]} 36. f4 {[%clk 0:00:03]}  Bf6 {[%clk 0:00:11]} 37. Kc2 {[%clk 0:00:04]}  Nb6 {[%clk 0:00:10]} 38. Kb3 {[%clk 0:00:04]}  Ra8 {[%clk 0:00:09]} 39. Ne3 {[%clk 0:00:04]}  Rb8 {[%clk 0:00:09]} 40. Kc2 {[%clk 0:00:04]}  d4 {[%clk 0:00:08]} 41. Ng4 {[%clk 0:00:03]}  Be7 {[%clk 0:00:08]} 42. Kd3 {[%clk 0:00:03]}  Rd8 {[%clk 0:00:03]} 43. Ne5 {[%clk 0:00:03]}  f6 {[%clk 0:00:02]} 44. Nc6 {[%clk 0:00:02]}  Rd7 {[%clk 0:00:02]} 45. Nxe7 {[%clk 0:00:02]}  Rxe7 {[%clk 0:00:03]} 46. Kxd4 {[%clk 0:00:03]}  e5+ {[%clk 0:00:04]} 47. Kc5 {[%clk 0:00:03]}  Na4+ {[%clk 0:00:02]} 48. Kd6 {[%clk 0:00:03]}  Re8 {[%clk 0:00:02]} 49. fxe5 {[%clk 0:00:04]}  Rxe5 {[%clk 0:00:02]} 50. Bf4 {[%clk 0:00:04]}  Rxh5 {[%clk 0:00:02]} 51. b4 {[%clk 0:00:05]}  Nc3 {[%clk 0:00:01]} 52. Kc6 {[%clk 0:00:04]}  Nb5 {[%clk 0:00:02]} 53. Rc1 {[%clk 0:00:03]}  Nd4+ {[%clk 0:00:03]} 54. Kd6 {[%clk 0:00:04]}  Rb5 {[%clk 0:00:03]} 55. Rc4 {[%clk 0:00:03]}  Nf5+ {[%clk 0:00:03]} 56. Kc6 {[%clk 0:00:03]}  Rxb4 {[%clk 0:00:02]} 57. Rxb4 {[%clk 0:00:03]}  g5 {[%clk 0:00:03]} 58. Rb7+ {[%clk 0:00:02]}  Kg6 {[%clk 0:00:03]} 59. Bd6 {[%clk 0:00:03]}  h5 {[%clk 0:00:03]} 60. Kd5 {[%clk 0:00:03]}  h4 {[%clk 0:00:02]} 61. g4 {[%clk 0:00:03]}  Nh6 {[%clk 0:00:01]} 62. Rb4 {[%clk 0:00:04]}  f5 {[%clk 0:00:02]} 63. Bf8 {[%clk 0:00:03]}  Nxg4 {[%clk 0:00:02]} 64. Rb6+ {[%clk 0:00:03]}  Kh5 {[%clk 0:00:02]} 65. Bd6 {[%clk 0:00:04]}  h3 {[%clk 0:00:03]} 66. Rb8 {[%clk 0:00:04]}  f4 {[%clk 0:00:01]} 67. Rh8+ {[%clk 0:00:04]}  Nh6 {[%clk 0:00:02]} 68. Bf8 {[%clk 0:00:04]}  Kg4 {[%clk 0:00:02]} 69. Rxh6 {[%clk 0:00:05]}  Kg3 {[%clk 0:00:03]} 70. Bc5 {[%clk 0:00:04]}  h2 {[%clk 0:00:02]} 71. Bd6 {[%clk 0:00:04]}  Kg2 {[%clk 0:00:02]} 72. Ke4 {[%clk 0:00:03]}  h1=Q {[%clk 0:00:02]} 73. Rxh1 {[%clk 0:00:04]}  Kxh1 {[%clk 0:00:03]} 74. Bxf4 {[%clk 0:00:04]}  gxf4 {[%clk 0:00:04]} 75. Kxf4 {[%clk 0:00:04]} 1/2-1/2


[Site "https://www.chess.com"]

[Event "Titled Tuesday Blitz August 24 2021"]
[White "Goryachkina, Aleksandra"]
[Black "Sjugirov, Sanan"]
[WhiteFideId "4147103"]
[BlackFideId "4189302"]
[WhiteElo "2441"]
[BlackElo "2472"]
[Result "0-1"]
[Round "05"]
[TimeControl "180+1"]
[Date "2021.08.24"]
[WhiteClock "0:00:01"]
[BlackClock "0:00:56"]

1. e4 {[%clk 0:01:30]}  c5 {[%clk 0:02:48]} 2. Nf3 {[%clk 0:01:29]}  Nf6 {[%clk 0:02:48]} 3. e5 {[%clk 0:01:27]}  Nd5 {[%clk 0:02:48]} 4. Nc3 {[%clk 0:01:27]}  Nxc3 {[%clk 0:02:48]} 5. dxc3 {[%clk 0:01:27]}  Nc6 {[%clk 0:02:49]} 6. Bf4 {[%clk 0:01:26]}  Qb6 {[%clk 0:02:48]} 7. Rb1 {[%clk 0:01:23]}  Qc7 {[%clk 0:02:48]} 8. Qd2 {[%clk 0:01:17]}  e6 {[%clk 0:02:48]} 9. Bd3 {[%clk 0:01:16]}  b6 {[%clk 0:02:46]} 10. Bg3 {[%clk 0:01:02]}  Bb7 {[%clk 0:02:45]} 11. Qf4 {[%clk 0:01:00]}  h6 {[%clk 0:02:39]} 12. Be4 {[%clk 0:00:54]}  g5 {[%clk 0:02:26]} 13. Qe3 {[%clk 0:00:52]}  Bg7 {[%clk 0:02:17]} 14. h4 {[%clk 0:00:46]}  g4 {[%clk 0:02:14]} 15. Nd2 {[%clk 0:00:46]}  Bxe5 {[%clk 0:01:36]} 16. Bxc6 {[%clk 0:00:44]}  Bxg3 {[%clk 0:01:36]} 17. Bxb7 {[%clk 0:00:41]}  Bf4 {[%clk 0:01:37]} 18. Qe2 {[%clk 0:00:23]}  Bxd2+ {[%clk 0:01:32]} 19. Kxd2 {[%clk 0:00:21]}  Qxb7 {[%clk 0:01:32]} 20. Qxg4 {[%clk 0:00:21]}  Qd5+ {[%clk 0:01:29]} 21. Kc1 {[%clk 0:00:19]}  h5 {[%clk 0:01:22]} 22. Qg7 {[%clk 0:00:16]}  O-O-O {[%clk 0:01:10]} 23. Rd1 {[%clk 0:00:12]}  Qf5 {[%clk 0:01:10]} 24. Qg3 {[%clk 0:00:10]}  Rhg8 {[%clk 0:01:09]} 25. Qe3 {[%clk 0:00:02]}  Rxg2 {[%clk 0:01:08]} 26. b3 {[%clk 0:00:01]}  Rxf2 {[%clk 0:01:04]} 27. Rd2 {[%clk 0:00:01]}  Rf3 {[%clk 0:00:56]} 0-1


[Site "https://www.chess.com"]